Workbook

Sheet KOMflex Ratio
B4: =(HLOOKUP($S$5,Sprachendatenbank!B:C,_xlfn.XLOOKUP("KOMflex Kompensationssystem - Kostenersparnis",Sprachendatenbank!B:B,Sprachendatenbank!A:A),FALSE)) -> KOMflex Compensation System - Cost Savings | S4: Language
S5: English
E7: =(HLOOKUP(S5,Sprachendatenbank!B:C,_xlfn.XLOOKUP("Kosten bei Jahresstückzahl",Sprachendatenbank!B:B,Sprachendatenbank!A:A),FALSE)) -> Cost for yearly Count of Workpieces | K7: =(HLOOKUP(S5,Sprachendatenbank!B:C,_xlfn.XLOOKUP("Jahreskosten gespindelter Bohrungen",Sprachendatenbank!B:B,Sprachendatenbank!A:A),FALSE)) -> Annual costs of spindle drilled holes
B9: =(HLOOKUP(S5,Sprachendatenbank!B:C,_xlfn.XLOOKUP("Bearbeitungsdaten",Sprachendatenbank!B:B,Sprachendatenbank!A:A),FALSE)) -> Manufacturing Data | D9: =(HLOOKUP(S5,Sprachendatenbank!B:C,_xlfn.XLOOKUP("Eingabefeld",Sprachendatenbank!B:B,Sprachendatenbank!A:A),FALSE)) -> Input Box
B10: =(HLOOKUP(S5,Sprachendatenbank!B:C,_xlfn.XLOOKUP("Jahresstückzahl",Sprachendatenbank!B:B,Sprachendatenbank!A:A),FALSE)) -> Yearly Number of Workpieces | D10: 500000
B11: =(HLOOKUP(S5,Sprachendatenbank!B:C,_xlfn.XLOOKUP("Standzeit, Stück pro Schneide",Sprachendatenbank!B:B,Sprachendatenbank!A:A),FALSE)) -> Tool life, pcs per cutting edge | D11: 200
B12: =(HLOOKUP(S5,Sprachendatenbank!B:C,_xlfn.XLOOKUP("Schneidenwechsel",Sprachendatenbank!B:B,Sprachendatenbank!A:A),FALSE)) -> Cutting Edge Changes | D12: =D10/D11 -> 2500
B13: =(HLOOKUP(S5,Sprachendatenbank!B:C,_xlfn.XLOOKUP("Kompensationen bis Schneidenwechsel",Sprachendatenbank!B:B,Sprachendatenbank!A:A),FALSE)) -> Compensation until Cutting Edge Change | D13: 5
B14: =(HLOOKUP(S5,Sprachendatenbank!B:C,_xlfn.XLOOKUP("Lohnkosten",Sprachendatenbank!B:B,Sprachendatenbank!A:A),FALSE)) -> Labor Costs | D14: 80
B16: =(HLOOKUP(S5,Sprachendatenbank!B:C,_xlfn.XLOOKUP("Vergleichsdaten",Sprachendatenbank!B:B,Sprachendatenbank!A:A),FALSE)) -> Comparison Data | C16: =(HLOOKUP(S5,Sprachendatenbank!B:C,_xlfn.XLOOKUP("closed loop mit KOMflex",Sprachendatenbank!B:B,Sprachendatenbank!A:A),FALSE)) -> closed loop with KOMflex | D16: =(HLOOKUP(S5,Sprachendatenbank!B:C,_xlfn.XLOOKUP("herkömmliches Spindeln",Sprachendatenbank!B:B,Sprachendatenbank!A:A),FALSE)) -> conventional Manufacturing
B17: =(HLOOKUP(S5,Sprachendatenbank!B:C,_xlfn.XLOOKUP("Zeit für einen Schneidenenwechsel",Sprachendatenbank!B:B,Sprachendatenbank!A:A),FALSE)) -> Time for one Cutting Edge Change | C17: 2 | D17: 5
B18: =(HLOOKUP(S5,Sprachendatenbank!B:C,_xlfn.XLOOKUP("Zeit für eine Kompensation",Sprachendatenbank!B:B,Sprachendatenbank!A:A),FALSE)) -> Time for one Compensation | C18: 15 | D18: 3
B19: =(HLOOKUP(S5,Sprachendatenbank!B:C,_xlfn.XLOOKUP("Zeit bei einem Werkstück",Sprachendatenbank!B:B,Sprachendatenbank!A:A),FALSE)) -> Time for one Workpiece | C19: =((C17+D13*(C18/60))/D11)*60 -> 0.975 | D19: =((D17+D13*D18)/D11)*60 -> 6
B20: =(HLOOKUP(S5,Sprachendatenbank!B:C,_xlfn.XLOOKUP("Zeit bei Jahresstückzahl",Sprachendatenbank!B:B,Sprachendatenbank!A:A),FALSE)) -> Time for yearly Count of Workpieces | C20: =(C19*D10)/3600 -> 135.4166667 | D20: =(D19*D10)/3600 -> 833.3333333
B21: =(HLOOKUP(S5,Sprachendatenbank!B:C,_xlfn.XLOOKUP("Kosten bei einem Werkstück",Sprachendatenbank!B:B,Sprachendatenbank!A:A),FALSE)) -> Cost for one Workpiece | C21: =(C19/3600)*D14 -> 0.02166666667 | D21: =(D19/3600)*D14 -> 0.1333333333
B22: =(HLOOKUP(S5,Sprachendatenbank!B:C,_xlfn.XLOOKUP("Kosten bei Jahresstückzahl",Sprachendatenbank!B:B,Sprachendatenbank!A:A),FALSE)) -> Cost for yearly Count of Workpieces | C22: =C20*D14 -> 10833.33333 | D22: =D20*D14 -> 66666.66667
B24: =(HLOOKUP(S5,Sprachendatenbank!B:C,_xlfn.XLOOKUP("Ergebnis",Sprachendatenbank!B:B,Sprachendatenbank!A:A),FALSE)) -> Result
B25: =(HLOOKUP(S5,Sprachendatenbank!B:C,_xlfn.XLOOKUP("Zeiterspanis bei Fertigung mit KOMflex auf ein Bauteil bezogen",Sprachendatenbank!B:B,Sprachendatenbank!A:A),FALSE)) -> Time Savings with KOMflex Manufacturing, based on one workpiece | D25: =D19-C19 -> 5.025 | K25: =(HLOOKUP(S5,Sprachendatenbank!B:C,_xlfn.XLOOKUP("Kostenersparnis",Sprachendatenbank!B:B,Sprachendatenbank!A:A),FALSE)) -> Cost Savings | O25: =1-(C22/D22) -> 0.8375
B26: =(HLOOKUP(S5,Sprachendatenbank!B:C,_xlfn.XLOOKUP("Kostenersparnis bei Fertigung mit KOMflex auf ein Bauteil bezogen",Sprachendatenbank!B:B,Sprachendatenbank!A:A),FALSE)) -> Cost Savings with KOMflex Manufacturing, based on one workpiece | D26: =D21-C21 -> 0.1116666667
B27: =(HLOOKUP(S5,Sprachendatenbank!B:C,_xlfn.XLOOKUP("Zeiterspanis bei Fertigung mit KOMflex auf Jahresaufwand bezogen",Sprachendatenbank!B:B,Sprachendatenbank!A:A),FALSE)) -> Time Savings with KOMflex Manufacturing, based on yearly count of workpieces | D27: =D20-C20 -> 697.9166667 | O27: =D22*O25 -> 55833.33333
B28: =(HLOOKUP(S5,Sprachendatenbank!B:C,_xlfn.XLOOKUP("Kostenersparnis bei Fertigung mit KOMflex auf Jahresaufwand bezogen",Sprachendatenbank!B:B,Sprachendatenbank!A:A),FALSE)) -> Cost Savings with KOMflex Manufacturing, based on yearly count of workpieces | D28: =D22-C22 -> 55833.33333

Sheet Sprachendatenbank (hidden)
A1: 1 | B1: Deutsch | C1: English
A2: 2 | B2: KOMflex Kompensationssystem - Kostenersparnis | C2: KOMflex Compensation System - Cost Savings
A3: 3 | B3: Bearbeitungsdaten | C3: Manufacturing Data
A4: 4 | B4: Eingabefeld | C4: Input Box
A5: 5 | B5: Jahresstückzahl | C5: Yearly Number of Workpieces
A6: 6 | B6: Standzeit, Stück pro Schneide | C6: Tool life, pcs per cutting edge
A7: 7 | B7: Schneidenwechsel | C7: Cutting Edge Changes
A8: 8 | B8: Kompensationen bis Schneidenwechsel | C8: Compensation until Cutting Edge Change
A9: 9 | B9: Lohnkosten | C9: Labor Costs
A10: 10 | B10: Bauteile | C10: Workpieces
A11: 11 | B11: Wechsel | C11: Changes
A12: 12 | B12: Kompensationen | C12: Compensations
A13: 13 | B13: Vergleichsdaten | C13: Comparison Data
A14: 14 | B14: closed loop mit KOMflex | C14: closed loop with KOMflex
A15: 15 | B15: herkömmliches Spindeln | C15: conventional Manufacturing
A16: 16 | B16: Zeit für einen Schneidenenwechsel | C16: Time for one Cutting Edge Change
A17: 17 | B17: Zeit für eine Kompensation | C17: Time for one Compensation
A18: 18 | B18: Zeit bei einem Werkstück | C18: Time for one Workpiece
A19: 19 | B19: Zeit bei Jahresstückzahl | C19: Time for yearly Count of Workpieces
A20: 20 | B20: Kosten bei einem Werkstück | C20: Cost for one Workpiece
A21: 21 | B21: Kosten bei Jahresstückzahl | C21: Cost for yearly Count of Workpieces
A22: 22 | B22: Ergebnis | C22: Result
A23: 23 | B23: Zeiterspanis bei Fertigung mit KOMflex auf ein Bauteil bezogen | C23: Time Savings with KOMflex Manufacturing, based on one workpiece
A24: 24 | B24: Kostenersparnis bei Fertigung mit KOMflex auf ein Bauteil bezogen | C24: Cost Savings with KOMflex Manufacturing, based on one workpiece
A25: 25 | B25: Zeiterspanis bei Fertigung mit KOMflex auf Jahresaufwand bezogen | C25: Time Savings with KOMflex Manufacturing, based on yearly count of workpieces
A26: 26 | B26: Kostenersparnis bei Fertigung mit KOMflex auf Jahresaufwand bezogen | C26: Cost Savings with KOMflex Manufacturing, based on yearly count of workpieces
A27: 27 | B27: Kostenersparnis | C27: Cost Savings
A28: 28 | B28: Jahreskosten gespindelter Bohrungen | C28: Annual costs of spindle drilled holes
A29: 29
A30: 30
A31: 31
A32: 32
A33: 33
A34: 34
A35: 35
A36: 36
A37: 37
A38: 38
A39: 39
A40: 40
